fUSD/lending_fUSD_20250629
["ID","MTS","AMOUNT","RATE_DAILY","PERIOD"]
[368481860,1751190650659,-497.75953515,0.00027671,3]
[368481862,1751190650669,-490.0,0.00027671,3]
[368481864,1751190650678,-490.0,0.00027671,3]
[368481866,1751190650688,-490.0,0.00027671,3]
[368481868,1751190650697,-490.0,0.00027671,3]
[368481870,1751190650706,-490.0,0.00027671,3]
[368481872,1751190650715,-490.0,0.00027671,3]
[368481873,1751190650725,-1837.93,0.00027671,3]
[368481874,1751190650734,-490.0,0.00027671,3]
[368481875,1751190650743,-490.0,0.00027671,3]
[368481876,1751190650753,-490.0,0.00027671,3]
[368481877,1751190650762,-677.59,0.00027671,3]
[368481878,1751190650771,-604.63930528,0.00027671,3]
[368481879,1751190650781,-961.81,0.00027671,3]
[368481880,1751190650790,-490.0,0.00027671,3]
[368481881,1751190650799,-496.82591929,0.00027671,3]
[368481882,1751190650809,-490.0,0.00027671,3]
[368481883,1751190650819,-2500.0,0.00027671,14]
[368481884,1751190650829,-490.0,0.00027671,3]
[368481885,1751190650838,-811.6,0.00027671,3]
[368481886,1751190650848,-490.0,0.00027671,3]
[368481888,1751190650857,-701.76,0.00027671,3]
[368481890,1751190650866,-490.0,0.00027671,3]
[368481892,1751190650876,-801.55,0.00027671,3]
[368481894,1751190650885,-490.0,0.00027671,3]
[368481896,1751190650894,-490.0,0.00027671,3]
[368481898,1751190650904,-493.56,0.00027671,3]
[368481899,1751190650914,-490.0,0.00027671,3]
[368481901,1751190650923,-490.0,0.00027671,3]
[368481903,1751190650933,-306.89259324,0.00027671,3]
[368481905,1751190650942,-490.0,0.00027671,3]
[368481907,1751190650951,-490.0,0.00027671,3]
[368481909,1751190650961,-490.0,0.00027671,3]
[368481911,1751190650970,-490.0,0.00027671,3]
[368481913,1751190650980,-331.44857658,0.00027671,3]
[368481915,1751190650989,-490.0,0.00027671,3]
[368481917,1751190650998,-490.0,0.00027671,3]
[368481919,1751190651008,-740.41,0.00027671,3]
[368481921,1751190651017,-930.82,0.00027671,3]
[368481923,1751190651027,-1134.82,0.00027671,3]
[368481925,1751190651037,-629.08,0.00027671,3]
[368481927,1751190651046,-507.56,0.00027671,3]
[368481929,1751190651056,-490.0,0.00027671,3]
[368481932,1751190651066,-490.0,0.00027671,3]
[368481934,1751190651076,-490.0,0.00027671,3]
[368481936,1751190651086,-490.0,0.00027671,3]
[368481938,1751190651095,-490.0,0.00027671,3]
[368481940,1751190651104,-508.09,0.00027671,3]
[368481942,1751190651114,-490.0,0.00027671,3]
[368481944,1751190651123,-1395.58,0.00027671,3]
[368481946,1751190651132,-596.83,0.00027671,3]
[368481948,1751190651142,-516.57,0.00027671,3]
[368481949,1751190651151,-490.0,0.00027671,3]
[368481951,1751190651160,-2015.14,0.00027671,3]
[368481954,1751190651170,-500.0,0.00027671,3]
[368481956,1751190651180,-1527.96,0.00027671,3]
[368481958,1751190651190,-490.0,0.00027671,3]
[368481960,1751190651199,-490.0,0.00027671,3]
[368481962,1751190651208,-490.0,0.00027671,3]
[368481964,1751190651218,-490.0,0.00027671,3]
[368481966,1751190651227,-615.0,0.00027671,3]
[368481968,1751190651236,-490.0,0.00027671,3]
[368481970,1751190651245,-490.0,0.00027671,3]
[368481972,1751190651255,-490.0,0.00027671,3]
[368481974,1751190651263,-889.47,0.00027671,3]
[368481976,1751190651273,-490.0,0.00027671,3]
[368481978,1751190651282,-490.0,0.00027671,3]
[368481979,1751190651292,-2302.9,0.00027671,3]
[368481981,1751190651301,-490.0,0.00027671,3]
[368481983,1751190651310,-490.0,0.00027671,3]
[368481985,1751190651320,-490.0,0.00027671,3]
[368481987,1751190651331,-490.0,0.00027671,3]
[368481989,1751190651340,-490.0,0.00027671,3]
[368481991,1751190651349,-490.0,0.00027671,3]
[368481993,1751190651359,-490.0,0.00027671,3]
[368481995,1751190651368,-743.01,0.00027671,3]
[368481997,1751190651378,-490.0,0.00027671,3]
[368481999,1751190651387,-945.27,0.00027671,3]
[368482001,1751190651397,-643.27,0.00027671,3]
[368482003,1751190651407,-1940.61,0.00027671,3]
[368482005,1751190651417,-490.0,0.00027671,3]
[368482007,1751190651427,-490.0,0.00027671,3]
[368482009,1751190651436,-1952.95,0.00027671,3]
[368482011,1751190651446,-1201.96,0.00027671,3]
[368482013,1751190651456,-636.80023653,0.00027671,3]
[368482015,1751190651466,-490.0,0.00027671,3]
[368482017,1751190651475,-1310.06,0.00027671,3]
[368482019,1751190651484,-490.0,0.00027671,3]
[368482021,1751190651494,-369.84,0.00027671,3]
[368482023,1751190651503,-490.0,0.00027671,3]
[368482025,1751190651512,-490.0,0.00027671,3]
[368482027,1751190651522,-1125.22,0.00027671,3]
[368482030,1751190651531,-1224.35,0.00027671,3]
[368482032,1751190651541,-490.0,0.00027671,3]
[368482034,1751190651551,-976.06,0.00027671,3]
[368482036,1751190651560,-728.8,0.00027671,3]
[368482038,1751190651569,-749.58,0.00027671,3]
[368482040,1751190651578,-957.88,0.00027671,3]
[368482042,1751190651587,-1824.88,0.00027671,3]
[368482044,1751190651601,-490.0,0.00027671,3]
[368482046,1751190651610,-603.75,0.00027671,3]
[368482048,1751190651620,-490.0,0.00027671,3]
[368482050,1751190651630,-490.0,0.00027671,3]
[368482052,1751190651639,-490.0,0.00027671,3]
[368482054,1751190651648,-231.8752706,0.00027671,3]
[368482056,1751190651657,-490.0,0.00027671,3]
[368482058,1751190651667,-490.0,0.00027671,3]
[368482060,1751190651676,-454.66318584,0.00027671,3]
[368482062,1751190651685,-490.0,0.00027671,3]
[368482064,1751190651695,-538.77,0.00027671,3]
[368482066,1751190651704,-776.78,0.00027671,3]
[368482068,1751190651715,-960.82,0.00027671,3]
[368482070,1751190651724,-894.84,0.00027671,3]
[368482072,1751190651733,-490.0,0.00027671,3]
[368482074,1751190651743,-490.0,0.00027671,3]
[368482076,1751190651752,-490.0,0.00027671,3]
[368482078,1751190651761,-1904.77,0.00027671,3]
[368482080,1751190651770,-490.0,0.00027671,3]
[368482082,1751190651780,-490.0,0.00027671,3]
[368482085,1751190651789,-490.0,0.00027671,3]
[368482086,1751190651798,-1462.39,0.00027671,3]
[368482089,1751190651808,-2300.89,0.00027671,3]
[368482091,1751190651818,-490.0,0.00027671,3]
[368482092,1751190651827,-694.52,0.00027671,3]
[368482094,1751190651838,-650.78,0.00027671,3]
[368482096,1751190651847,-490.0,0.00027671,3]
[368482098,1751190651857,-490.0,0.00027671,3]
[368482100,1751190651866,-2228.41,0.00027671,3]
[368482102,1751190651875,-490.0,0.00027671,3]
[368482104,1751190651884,-1649.19,0.00027671,3]
[368482106,1751190651894,-490.0,0.00027671,3]
[368482108,1751190651903,-490.0,0.00027671,3]
[368482110,1751190651912,-490.0,0.00027671,3]
[368482112,1751190651922,-2026.94,0.00027671,3]
[368482114,1751190651932,-534.66395776,0.00027671,3]
[368482116,1751190651941,-490.0,0.00027671,3]
[368482118,1751190651951,-490.0,0.00027671,3]
[368482120,1751190651962,-843.7,0.00027671,3]
[368482123,1751190651972,-490.0,0.00027671,3]
[368482125,1751190651981,-490.0,0.00027671,3]
[368482127,1751190651990,-490.0,0.00027671,3]
[368482129,1751190651999,-490.0,0.00027671,3]
[368482131,1751190652008,-490.0,0.00027671,3]
[368482133,1751190652018,-490.0,0.00027671,3]
[368482135,1751190652028,-571.61,0.00027671,3]
[368482137,1751190652037,-490.0,0.00027671,3]
[368482139,1751190652046,-1147.84,0.00027671,3]
[368482141,1751190652056,-490.0,0.00027671,3]
[368482143,1751190652066,-1556.08,0.00027671,3]
[368482145,1751190652075,-896.97,0.00027671,3]
[368482147,1751190652084,-490.0,0.00027671,3]
[368482149,1751190652093,-594.67,0.00027671,3]
[368482151,1751190652103,-490.0,0.00027671,3]
[368482153,1751190652113,-1027.62,0.00027671,3]
[368482155,1751190652122,-707.16,0.00027671,3]
[368482157,1751190652131,-500.0,0.00027671,3]
[368482159,1751190652141,-792.35,0.00027671,3]
[368482161,1751190652151,-490.0,0.00027671,3]
[368482165,1751190652179,-880.72,0.00027671,3]
[368482167,1751190652188,-490.0,0.00027671,3]
[368482169,1751190652198,-490.0,0.00027671,3]
[368482171,1751190652207,-490.0,0.00027671,3]
[368482173,1751190652216,-405.53,0.00027671,3]
[368482175,1751190652225,-490.0,0.00027671,3]
[368482177,1751190652234,-780.47,0.00027671,3]
[368482179,1751190652244,-490.0,0.00027671,3]
[368482181,1751190652253,-614.6656881,0.00027671,3]
[368482183,1751190652262,-560.33,0.00027671,3]
[368482185,1751190652272,-525.19,0.00027671,3]
[368482187,1751190652281,-944.59,0.00027671,3]
[368482189,1751190652290,-490.0,0.00027671,3]
[368482191,1751190652299,-1653.81,0.00027671,3]
[368482193,1751190652308,-490.0,0.00027671,3]
[368482195,1751190652317,-1620.77,0.00027671,3]
[368482197,1751190652327,-529.13462652,0.00027671,3]
[368482198,1751190652336,-1900.77,0.00027671,3]
[368482200,1751190652345,-490.0,0.00027671,3]
[368482202,1751190652355,-490.0,0.00027671,3]
[368482204,1751190652364,-490.0,0.00027671,3]
[368482206,1751190652375,-521.24,0.00027671,3]
[368482208,1751190652384,-1487.61,0.00027671,3]
[368482210,1751190652393,-1556.78,0.00027671,3]
[368482212,1751190652404,-490.0,0.00027671,3]
[368482215,1751190652414,-1633.03,0.00027671,3]
[368482217,1751190652423,-1046.71,0.00027671,3]
[368482219,1751190652433,-490.0,0.00027671,3]
[368482221,1751190652442,-506.3,0.00027671,3]
[368482223,1751190652451,-1936.24,0.00027671,3]
[368482225,1751190652460,-514.5,0.00027671,3]
[368482227,1751190652469,-490.0,0.00027671,3]
[368482229,1751190652478,-2262.43,0.00027671,3]
[368482231,1751190652487,-490.0,0.00027671,3]
[368482233,1751190652496,-665.95,0.00027671,3]
[368482235,1751190652505,-1268.88,0.00027671,3]
[368482237,1751190652515,-2474.6,0.00027671,3]
[368482239,1751190652525,-689.16,0.00027671,3]
[368482241,1751190652534,-490.0,0.00027671,3]
[368482243,1751190652543,-490.0,0.00027671,3]
[368482245,1751190652553,-490.0,0.00027671,3]
[368482247,1751190652563,-858.86,0.00027671,3]
[368482249,1751190652572,-1400.07,0.00027671,3]
[368482251,1751190652582,-490.0,0.00027671,3]
[368482253,1751190652590,-490.0,0.00027671,3]
[368482255,1751190652600,-730.59,0.00027671,3]
[368482257,1751190652610,-666.33,0.00027671,3]
[368482258,1751190652619,-1700.28,0.00027671,3]
[368482260,1751190652628,-818.45,0.00027671,3]
[368482295,1751190652943,-1024.15,0.00027671,3]
[368482298,1751190652958,-709.17,0.00027671,3]
[368482300,1751190652967,-490.0,0.00027671,3]
[368482302,1751190652976,-490.0,0.00027671,3]
[368482304,1751190652986,-2038.87,0.00027671,3]
[368482306,1751190652995,-1027.52,0.00027671,3]
[368482308,1751190653004,-490.0,0.00027671,3]
[368482310,1751190653014,-534.02,0.00027671,3]
[368482312,1751190653023,-2394.84,0.00027671,3]
[368482314,1751190653033,-490.0,0.00027671,3]
[368482316,1751190653042,-1561.51,0.00027671,3]
[368482318,1751190653052,-490.0,0.00027671,3]
[368482320,1751190653061,-490.0,0.00027671,3]
[368482322,1751190653070,-490.0,0.00027671,3]
[368482324,1751190653079,-1167.05,0.00027671,3]
[368482326,1751190653089,-899.19,0.00027671,3]
[368482328,1751190653098,-935.31,0.00027671,3]
[368482330,1751190653107,-771.06,0.00027671,3]
[368482332,1751190653117,-490.0,0.00027671,3]
[368482334,1751190653126,-610.33,0.00027671,3]
[368482336,1751190653136,-490.0,0.00027671,3]
[368482337,1751190653145,-490.0,0.00027671,3]
[368482338,1751190653154,-715.86,0.00027671,3]
[368482340,1751190653163,-490.0,0.00027671,3]
[368482342,1751190653173,-490.0,0.00027671,3]
[368482344,1751190653182,-1503.84,0.00027671,3]
[368482346,1751190653191,-566.4,0.00027671,3]
[368482347,1751190653201,-1626.28,0.00027671,3]
[368482348,1751190653210,-934.93,0.00027671,3]
[368482349,1751190653220,-589.35,0.00027671,3]
[368482351,1751190653229,-490.0,0.00027671,3]
[368482353,1751190653238,-516.29,0.00027671,3]
[368482355,1751190653247,-490.0,0.00027671,3]
[368482357,1751190653256,-2211.02,0.00027671,3]
[368482359,1751190653265,-1313.26,0.00027671,3]
[368482361,1751190653274,-878.98,0.00027671,3]
[368482363,1751190653283,-490.0,0.00027671,3]
[368482365,1751190653292,-2018.3,0.00027671,3]
[368482367,1751190653301,-490.0,0.00027671,3]
[368482369,1751190653311,-1320.46,0.00027671,3]
[368482371,1751190653321,-1272.1,0.00027671,3]
[368482373,1751190653333,-490.0,0.00027671,3]
[368482375,1751190653342,-2254.95,0.00027671,3]
[368482377,1751190653351,-490.0,0.00027671,3]
[368482379,1751190653361,-490.0,0.00027671,3]
[368482381,1751190653369,-490.0,0.00027671,3]
[368482383,1751190653378,-490.0,0.00027671,3]
[368482385,1751190653387,-801.49,0.00027671,3]
[368482387,1751190653396,-793.92,0.00027671,3]
[368482389,1751190653406,-1409.04,0.00027671,3]
[368482391,1751190653416,-566.98,0.00027671,3]
[368482393,1751190653425,-1383.19,0.00027671,3]
[368482395,1751190653434,-855.39,0.00027671,3]
[368482396,1751190653444,-520.23,0.00027671,3]
[368482399,1751190653453,-503.31,0.00027671,3]
[368482401,1751190653462,-490.0,0.00027671,3]
[368482403,1751190653471,-490.0,0.00027671,3]
[368482405,1751190653481,-490.0,0.00027671,3]
[368482407,1751190653490,-490.0,0.00027671,3]
[368482409,1751190653499,-490.0,0.00027671,3]
[368482411,1751190653509,-907.17,0.00027671,3]
[368482413,1751190653518,-1411.93,0.00027671,3]
[368482415,1751190653527,-490.0,0.00027671,3]
[368482417,1751190653536,-1733.55,0.00027671,3]
[368482419,1751190653546,-490.0,0.00027671,3]
[368482421,1751190653555,-1161.29,0.00027671,3]
[368482423,1751190653564,-490.0,0.00027671,3]
[368482425,1751190653573,-490.0,0.00027671,3]
[368482427,1751190653583,-490.0,0.00027671,3]
[368482429,1751190653592,-490.0,0.00027671,3]
[368482431,1751190653601,-490.0,0.00027671,3]
[368482433,1751190653612,-490.0,0.00027671,3]
[368482435,1751190653621,-648.19,0.00027671,3]
[368482437,1751190653630,-492.59,0.00027671,3]
[368482439,1751190653639,-664.2,0.00027671,3]
[368482441,1751190653648,-1411.98,0.00027671,3]
[368482443,1751190653657,-490.0,0.00027671,3]
[368482445,1751190653667,-490.0,0.00027671,3]
[368482447,1751190653677,-1476.05,0.00027671,3]
[368482449,1751190653686,-490.0,0.00027671,3]
[368482451,1751190653694,-490.0,0.00027671,3]
[368482453,1751190653704,-490.0,0.00027671,3]
[368482455,1751190653713,-490.0,0.00027671,3]
[368482457,1751190653722,-2483.68,0.00027671,3]
[368482459,1751190653732,-1539.15,0.00027671,3]
[368482461,1751190653743,-622.78,0.00027671,3]
[368482463,1751190653753,-2320.44,0.00027671,3]
[368482465,1751190653762,-490.0,0.00027671,3]
[368482467,1751190653771,-894.95,0.00027671,3]
[368482469,1751190653781,-490.0,0.00027671,3]
[368482471,1751190653791,-701.41,0.00027671,3]
[368482473,1751190653801,-490.0,0.00027671,3]
[368482475,1751190653810,-490.0,0.00027671,3]
[368482477,1751190653819,-1005.08,0.00027671,3]
[368482479,1751190653830,-526.1,0.00027671,3]
[368482481,1751190653839,-490.0,0.00027671,3]
[368482483,1751190653849,-490.0,0.00027671,3]
[368482485,1751190653858,-1032.78,0.00027671,3]
[368482487,1751190653867,-1199.97,0.00027671,3]
[368482489,1751190653876,-1283.76,0.00027671,3]
[368482492,1751190653886,-549.61,0.00027671,3]
[368482494,1751190653895,-490.0,0.00027671,3]
[368482496,1751190653905,-512.68843227,0.00027671,3]
[368482498,1751190653916,-490.0,0.00027671,3]
[368482500,1751190653926,-490.0,0.00027671,3]
[368482502,1751190653937,-901.15,0.00027671,3]
[368482504,1751190653948,-545.6,0.00027671,3]
[368482506,1751190653957,-490.0,0.00027671,3]
[368482508,1751190653966,-841.45,0.00027671,3]
[368482510,1751190653977,-1956.7,0.00027671,3]
[368482512,1751190653986,-525.0,0.00027671,3]
[368482514,1751190653995,-908.9,0.00027671,3]
[368482516,1751190654005,-490.0,0.00027671,3]
[368482518,1751190654013,-490.0,0.00027671,3]
[368482520,1751190654023,-1559.17,0.00027671,3]
[368482522,1751190654032,-490.0,0.00027671,3]
[368482524,1751190654041,-772.36,0.00027671,3]
[368482528,1751190654065,-490.0,0.00027671,3]
[368482530,1751190654075,-490.0,0.00027671,3]
[368482532,1751190654084,-1731.31,0.00027671,3]
[368482534,1751190654094,-490.0,0.00027671,3]
[368482536,1751190654103,-403.18102032,0.00027671,3]
[368482538,1751190654112,-1241.41,0.00027671,3]
[368482540,1751190654121,-490.0,0.00027671,3]
[368482542,1751190654131,-2257.75,0.00027671,3]
[368482544,1751190654140,-1736.54,0.00027671,3]
[368482546,1751190654150,-2325.03,0.00027671,3]
[368482548,1751190654160,-613.43,0.00027671,3]
[368482550,1751190654169,-590.45760377,0.00027671,3]
[368482552,1751190654179,-490.0,0.00027671,3]
[368482554,1751190654188,-1117.78,0.00027671,3]
[368482556,1751190654197,-1022.6,0.00027671,3]
[368482558,1751190654206,-896.69,0.00027671,3]
[368482560,1751190654215,-490.0,0.00027671,3]
[368482562,1751190654225,-998.0,0.00027671,3]
[368482564,1751190654234,-490.0,0.00027671,3]
[368482566,1751190654243,-490.0,0.00027671,3]
[368482568,1751190654253,-490.0,0.00027671,3]
[368482571,1751190654262,-1382.19,0.00027671,3]
[368482573,1751190654271,-490.0,0.00027671,3]
[368482575,1751190654281,-490.0,0.00027671,3]
[368482577,1751190654290,-1087.69,0.00027671,3]
[368482579,1751190654298,-490.0,0.00027671,3]
[368482580,1751190654309,-937.32,0.00027671,3]
[368482582,1751190654319,-490.0,0.00027671,3]
[368482585,1751190654332,-490.0,0.00027671,3]
[368482587,1751190654341,-490.0,0.00027671,3]
[368482589,1751190654353,-490.0,0.00027671,3]
[368482591,1751190654362,-2003.29,0.00027671,3]
[368482593,1751190654373,-490.0,0.00027671,3]
[368482595,1751190654382,-1073.82,0.00027671,3]
[368482597,1751190654392,-490.0,0.00027671,3]
[368482599,1751190654402,-1428.66,0.00027671,3]
[368482601,1751190654411,-490.0,0.00027671,3]
[368482603,1751190654421,-906.56,0.00027671,3]
[368482605,1751190654430,-490.0,0.00027671,3]
[368482607,1751190654439,-751.94,0.00027671,3]
[368482609,1751190654448,-1284.2,0.00027671,3]
[368482611,1751190654458,-995.73,0.00027671,3]
[368482613,1751190654466,-730.89,0.00027671,3]
[368482615,1751190654475,-490.0,0.00027671,3]
[368482617,1751190654485,-490.0,0.00027671,3]
[368482619,1751190654494,-490.0,0.00027671,3]
[368482621,1751190654504,-490.0,0.00027671,3]
[368482623,1751190654513,-490.0,0.00027671,3]
[368482625,1751190654522,-490.0,0.00027671,3]
[368482627,1751190654531,-490.0,0.00027671,3]
[368482629,1751190654540,-490.0,0.00027671,3]
[368482631,1751190654549,-490.0,0.00027671,3]
[368482633,1751190654559,-3819.49,0.00027671,3]
[368482635,1751190654569,-490.0,0.00027671,3]
[368482637,1751190654578,-470.0,0.00027671,3]
[368482639,1751190654588,-614.58,0.00027671,3]
[368482641,1751190654597,-580.67133091,0.00027671,3]
[368482643,1751190654607,-366.71323738,0.00027671,3]
[368482645,1751190654616,-2099.43,0.00027671,3]
[368482646,1751190654627,-591.09,0.00027671,3]
[368482648,1751190654637,-490.0,0.00027671,3]
[368482650,1751190654646,-490.0,0.00027671,3]
[368482652,1751190654655,-490.0,0.00027671,3]
[368482654,1751190654664,-304.64046729,0.00027671,3]
[368482656,1751190654674,-1553.22,0.00027671,3]
[368482658,1751190654683,-1763.09,0.00027671,3]
[368482660,1751190654692,-930.34,0.00027671,3]
[368482662,1751190654702,-496.18283462,0.00027671,3]
[368482664,1751190654711,-587.32,0.00027671,3]
[368482666,1751190654720,-1288.37,0.00027671,3]
[368482668,1751190654729,-490.0,0.00027671,3]
[368482670,1751190654738,-4450.47,0.00027671,3]
[368482672,1751190654748,-935.65,0.00027671,3]
[368482674,1751190654758,-490.0,0.00027671,3]
[368482676,1751190654768,-490.0,0.00027671,3]
[368482678,1751190654777,-490.0,0.00027671,3]
[368482680,1751190654787,-854.31,0.00027671,3]
[368482682,1751190654797,-455.50773741,0.00027671,3]
[368482684,1751190654806,-561.86949796,0.00027671,3]
[368482686,1751190654816,-490.0,0.00027671,3]
[368482688,1751190654825,-561.80319279,0.00027671,3]
[368482690,1751190654834,-959.78,0.00027671,3]
[368482692,1751190654844,-528.19,0.00027671,3]
[368482694,1751190654853,-490.0,0.00027671,3]
[368482696,1751190654863,-490.0,0.00027671,3]
[368482698,1751190654872,-490.0,0.00027671,3]
[368482700,1751190654882,-490.0,0.00027671,3]
[368482702,1751190654891,-490.0,0.00027671,3]
[368482704,1751190654902,-439.1710959,0.00027671,3]
[368482706,1751190654911,-1065.99,0.00027671,3]
[368482708,1751190654921,-490.0,0.00027671,3]
[368482710,1751190654930,-766.16,0.00027671,3]
[368482712,1751190654940,-490.0,0.00027671,3]
[368482714,1751190654949,-1177.8,0.00027671,3]
[368482716,1751190654959,-490.0,0.00027671,3]
[368482718,1751190654968,-1454.99,0.00027671,3]
[368482720,1751190654978,-490.0,0.00027671,3]
[368482722,1751190654987,-490.0,0.00027671,3]
[368482724,1751190654997,-921.89,0.00027671,3]
[368482726,1751190655007,-1049.98,0.00027671,3]
[368482728,1751190655016,-490.0,0.00027671,3]
[368482730,1751190655025,-603.29,0.00027671,3]
[368482732,1751190655034,-490.0,0.00027671,3]
[368482734,1751190655044,-490.0,0.00027671,3]
[368482736,1751190655054,-490.0,0.00027671,3]
[368482737,1751190655064,-490.0,0.00027671,3]
[368482739,1751190655073,-1101.22,0.00027671,3]
[368482741,1751190655083,-490.0,0.00027671,3]
[368482743,1751190655093,-490.0,0.00027671,3]
[368482744,1751190655102,-490.0,0.00027671,3]
[368482745,1751190655112,-555.36,0.00027671,3]
[368482746,1751190655121,-1690.83,0.00027671,3]
[368482747,1751190655131,-490.0,0.00027671,3]
[368482748,1751190655141,-608.46,0.00027671,3]
[368482749,1751190655150,-494.25,0.00027671,3]
[368482750,1751190655161,-916.39,0.00027671,3]
[368482751,1751190655170,-698.3,0.00027671,3]
[368482752,1751190655180,-490.0,0.00027671,3]
[368482753,1751190655189,-573.71,0.00027671,3]
[368482754,1751190655199,-18048.03,0.00027671,3]
[368482755,1751190655209,-1394.52,0.00027671,3]
[368482756,1751190655219,-490.0,0.00027671,3]
[368482757,1751190655229,-490.0,0.00027671,3]
[368482758,1751190655239,-841.15,0.00027671,3]
[368482764,1751190655342,-1033.94,0.00027671,3]
[368482766,1751190655351,-490.0,0.00027671,3]
[368482768,1751190655360,-490.0,0.00027671,3]
[368482770,1751190655370,-814.68,0.00027671,3]
[368482772,1751190655379,-860.32,0.00027671,3]
[368482774,1751190655388,-994.63,0.00027671,3]
[368482776,1751190655397,-817.07,0.00027671,3]
[368482778,1751190655406,-490.0,0.00027671,3]
[368482780,1751190655416,-490.0,0.00027671,3]
[368482782,1751190655425,-490.0,0.00027671,3]
[368482784,1751190655435,-1083.78,0.00027671,3]
[368482786,1751190655444,-521.16342874,0.00027671,3]
[368482788,1751190655453,-490.0,0.00027671,3]
[368482790,1751190655462,-895.73,0.00027671,3]
[368482792,1751190655471,-490.0,0.00027671,3]
[368482794,1751190655480,-1619.71,0.00027671,3]
[368482796,1751190655489,-2039.79,0.00027671,3]
[368482798,1751190655498,-367.23034795,0.00027671,3]
[368482799,1751190655507,-490.0,0.00027671,3]
[368482801,1751190655517,-490.0,0.00027671,3]
[368482803,1751190655526,-522.56,0.00027671,3]
[368482805,1751190655536,-490.0,0.00027671,3]
[368482807,1751190655544,-490.0,0.00027671,3]
[368482809,1751190655553,-490.0,0.00027671,3]
[368482811,1751190655562,-1338.17,0.00027671,3]
[368482813,1751190655572,-490.0,0.00027671,3]
[368482815,1751190655581,-490.0,0.00027671,3]
[368482817,1751190655590,-2735.95,0.00027671,3]
[368482819,1751190655599,-490.0,0.00027671,3]
[368482821,1751190655608,-584.25728743,0.00027671,3]
[368482823,1751190655618,-490.0,0.00027671,3]
[368482825,1751190655627,-490.0,0.00027671,3]
[368482827,1751190655637,-5045.19,0.00027671,3]
[368482829,1751190655647,-490.0,0.00027671,3]
[368482831,1751190655656,-732.19,0.00027671,3]
[368482833,1751190655665,-490.0,0.00027671,3]
[368482835,1751190655674,-490.0,0.00027671,3]
[368482837,1751190655683,-1159.62,0.00027671,3]
[368482839,1751190655692,-2798.62,0.00027671,3]
[368482841,1751190655701,-557.27,0.00027671,3]
[368482843,1751190655710,-490.0,0.00027671,3]
[368482845,1751190655719,-1735.18,0.00027671,3]
[368482847,1751190655728,-490.0,0.00027671,3]
[368482848,1751190655736,-490.0,0.00027671,3]
[368482850,1751190655746,-2632.4,0.00027671,3]
[368482852,1751190655755,-795.99,0.00027671,3]
[368482854,1751190655765,-490.0,0.00027671,3]
[368482856,1751190655774,-490.0,0.00027671,3]
[368482858,1751190655784,-890.5,0.00027671,3]
[368482860,1751190655793,-490.0,0.00027671,3]
[368482862,1751190655802,-2676.96,0.00027671,3]
[368482864,1751190655812,-815.43,0.00027671,3]